fUSD/lending_fUSD_20260606
["ID","MTS","AMOUNT","RATE_DAILY","PERIOD"]
[424261432,1780708242000,-587.0,0.0002,2]
[424261433,1780708242000,-200.0,0.0002,10]
[424261441,1780708242000,-1691.0,0.0002,2]
[424261451,1780708242000,-651.34447119,0.000208,2]
[424261435,1780708242000,-638.0,0.0002,2]
[424261434,1780708242000,-3806.0,0.0002,2]
[424261438,1780708242000,-200.0,0.0002,2]
[424261439,1780708242000,-800.0,0.0002,2]
[424261436,1780708242000,-704.0,0.0002,2]
[424261442,1780708242000,-14165.05,0.0002,2]
[424261444,1780708242000,-1124.0,0.0002008,2]
[424261446,1780708242000,-39468.26079027,0.00020162,2]
[424261445,1780708242000,-300.0,0.000201,10]
[424261447,1780708242000,-651.34447119,0.000202,2]
[424261448,1780708242000,-4071.0,0.00020381,2]
[424261449,1780708242000,-651.34447119,0.000204,2]
[424261450,1780708242000,-651.34447119,0.000206,2]
[424261443,1780708242000,-408.0,0.0002,2]
[424261389,1780708242000,-500.0,0.00019178,2]
[424261420,1780708242000,-500.0,0.00019999,2]
[424261419,1780708242000,-175.65602954,0.00019805,2]
[424261431,1780708242000,-1022.0,0.0002,2]
[424261427,1780708242000,-574.0,0.0002,2]
[424261390,1780708242000,-500.0,0.00019178,2]
[424261418,1780708242000,-1157.17389706,0.000197,2]
[424261392,1780708242000,-500.0,0.00019178,2]
[424261394,1780708242000,-500.0,0.00019178,2]
[424261395,1780708242000,-500.0,0.00019178,2]
[424261393,1780708242000,-500.0,0.00019178,2]
[424261396,1780708242000,-500.0,0.00019178,2]
[424261398,1780708242000,-500.0,0.00019178,2]
[424261397,1780708242000,-500.0,0.00019178,2]
[424261400,1780708242000,-500.0,0.00019178,2]
[424261387,1780708242000,-500.0,0.00019178,2]
[424261388,1780708242000,-500.0,0.00019178,2]
[424261406,1780708242000,-500.0,0.00019178,2]
[424261411,1780708242000,-1157.17389706,0.000193,2]
[424261407,1780708242000,-500.0,0.00019178,2]
[424261399,1780708242000,-500.0,0.00019178,2]
[424261414,1780708242000,-550.0,0.00019347,2]
[424261422,1780708242000,-213.85,0.0002,2]
[424261408,1780708242000,-500.0,0.00019178,2]
[424261415,1780708242000,-2250.0,0.00019347,7]
[424261405,1780708242000,-500.0,0.00019178,2]
[424261402,1780708242000,-500.0,0.00019178,2]
[424261404,1780708242000,-500.0,0.00019178,2]
[424261403,1780708242000,-500.0,0.00019178,2]
[424261417,1780708242000,-1157.17389706,0.000195,2]
[424261410,1780708242000,-457.08143239,0.00019203,2]
[424261409,1780708242000,-500.0,0.00019178,2]
[424261412,1780708242000,-2500.0,0.00019347,2]
[424261413,1780708242000,-2500.0,0.00019347,2]
[424261401,1780708242000,-500.0,0.00019178,2]
[424261504,1780708243000,-382.0,0.00021891,2]
[424261502,1780708243000,-3553.0,0.00021891,2]
[424261501,1780708243000,-150.0,0.00021891,2]
[424261499,1780708243000,-150.0,0.00021891,2]
[424261489,1780708243000,-2952.0,0.00021688,5]
[424261494,1780708243000,-150.0,0.00021891,2]
[424261487,1780708243000,-1881.48718098,0.000216,2]
[424261497,1780708243000,-150.0,0.00021891,2]
[424261496,1780708243000,-150.0,0.00021891,2]
[424261493,1780708243000,-150.0,0.00021891,2]
[424261498,1780708243000,-150.0,0.00021891,2]
[424261503,1780708243000,-1357.0,0.00021891,2]
[424261488,1780708243000,-2175.0,0.00021688,5]
[424261500,1780708243000,-150.0,0.00021891,2]
[424261525,1780708243000,-587.0,0.00022,2]
[424261508,1780708243000,-1881.48718098,0.000219,2]
[424261506,1780708243000,-1227.0,0.00021891,2]
[424261509,1780708243000,-5000.0,0.00021918,2]
[424261507,1780708243000,-300.0,0.000219,7]
[424261510,1780708243000,-200.0,0.00021918,2]
[424261511,1780708243000,-200.0,0.00021918,2]
[424261513,1780708243000,-200.0,0.00021918,2]
[424261515,1780708243000,-150.0,0.00021918,2]
[424261524,1780708243000,-167.0,0.00022,2]
[424261514,1780708243000,-200.0,0.00021918,2]
[424261512,1780708243000,-200.0,0.00021918,2]
[424261523,1780708243000,-1022.0,0.00022,2]
[424261491,1780708243000,-60016.73136667,0.000218,2]
[424261505,1780708243000,-1273.0,0.00021891,2]
[424261492,1780708243000,-150.0,0.00021891,2]
[424261453,1780708243000,-1039.35,0.000208,2]
[424261486,1780708243000,-1881.48718098,0.000214,2]
[424261516,1780708243000,-450.0,0.00022,2]
[424261452,1780708243000,-1283.45,0.000208,7]
[424261454,1780708243000,-1881.48718098,0.00021,2]
[424261455,1780708243000,-9999.99999991,0.00021,2]
[424261456,1780708243000,-791.0,0.00021,2]
[424261465,1780708243000,-3440.0,0.00021,2]
[424261466,1780708243000,-1022.0,0.00021,2]
[424261467,1780708243000,-587.0,0.00021,2]
[424261457,1780708243000,-1014.0,0.00021,2]
[424261459,1780708243000,-6111.0,0.00021,2]
[424261461,1780708243000,-6111.0,0.00021,2]
[424261460,1780708243000,-15000.0,0.00021,2]
[424261464,1780708243000,-494.674534,0.00021,2]
[424261463,1780708243000,-2590.0,0.00021,2]
[424261458,1780708243000,-15000.0,0.00021,2]
[424261462,1780708243000,-574.0,0.00021,2]
[424261469,1780708243000,-638.0,0.00021,2]
[424261478,1780708243000,-1881.48718098,0.000212,2]
[424261480,1780708243000,-478.92,0.00021205,2]
[424261483,1780708243000,-6072.0,0.00021352,2]
[424261484,1780708243000,-933.0,0.00021352,2]
[424261468,1780708243000,-3806.0,0.00021,2]
[424261475,1780708243000,-408.0,0.00021,2]
[424261473,1780708243000,-1691.0,0.00021,2]
[424261471,1780708243000,-3833.0,0.00021,2]
[424261470,1780708243000,-704.0,0.00021,2]
[424261476,1780708243000,-1124.0,0.00021137,2]
[424261472,1780708243000,-800.0,0.00021,2]
[424261495,1780708243000,-150.0,0.00021891,2]
[424261490,1780708243000,-14165.05,0.00021711,2]
[424261520,1780708243000,-2590.0,0.00022,2]
[424261519,1780708243000,-574.0,0.00022,2]
[424261521,1780708243000,-494.674534,0.00022,2]
[424261555,1780708243000,-2590.0,0.00023,2]
[424261561,1780708243000,-638.0,0.00023,2]
[424261560,1780708243000,-3806.0,0.00023,2]
[424261559,1780708243000,-587.0,0.00023,2]
[424261556,1780708243000,-494.674534,0.00023,2]
[424261564,1780708243000,-800.0,0.00023,2]
[424261557,1780708243000,-3440.0,0.00023,2]
[424261562,1780708243000,-704.0,0.00023,2]
[424261565,1780708243000,-1691.0,0.00023,2]
[424261566,1780708243000,-408.0,0.00023,2]
[424261568,1780708243000,-4854.23,0.00023328,2]
[424261579,1780708243000,-500.0,0.00024,2]
[424261567,1780708243000,-150.0,0.00023288,2]
[424261554,1780708243000,-574.0,0.00023,2]
[424261581,1780708243000,-151.0,0.00024,4]
[424261584,1780708243000,-1014.0,0.00024,2]
[424261583,1780708243000,-791.0,0.00024,2]
[424261573,1780708243000,-14165.05,0.00023421,7]
[424261575,1780708243000,-200.0,0.00023448,2]
[424261570,1780708243000,-1124.0,0.0002342,2]
[424261577,1780708243000,-844.0,0.00023483,7]
[424261586,1780708243000,-2590.0,0.00024,2]
[424261590,1780708243000,-587.0,0.00024,2]
[424261588,1780708243000,-3440.0,0.00024,2]
[424261517,1780708243000,-791.0,0.00022,2]
[424261587,1780708243000,-494.674534,0.00024,2]
[424261592,1780708243000,-638.0,0.00024,2]
[424261591,1780708243000,-3806.0,0.00024,2]
[424261585,1780708243000,-574.0,0.00024,2]
[424261563,1780708243000,-3833.0,0.00023,2]
[424261589,1780708243000,-1022.0,0.00024,2]
[424261553,1780708243000,-1364.0,0.00023,2]
[424261558,1780708243000,-1022.0,0.00023,2]
[424261518,1780708243000,-1014.0,0.00022,2]
[424261526,1780708243000,-3806.0,0.00022,2]
[424261527,1780708243000,-638.0,0.00022,2]
[424261538,1780708243000,-596.24169126,0.00022407,2]
[424261531,1780708243000,-800.0,0.00022,2]
[424261528,1780708243000,-704.0,0.00022,2]
[424261536,1780708243000,-3850.37,0.000224,14]
[424261530,1780708243000,-2413.92,0.00022,2]
[424261533,1780708243000,-408.0,0.00022,2]
[424261535,1780708243000,-4071.0,0.00022353,2]
[424261529,1780708243000,-3833.0,0.00022,2]
[424261537,1780708243000,-596.24169128,0.00022407,2]
[424261532,1780708243000,-1691.0,0.00022,2]
[424261522,1780708243000,-3440.0,0.00022,2]
[424261552,1780708243000,-1014.0,0.00023,2]
[424261534,1780708243000,-1124.0,0.00022249,2]
[424261545,1780708243000,-1000.0,0.0002259,2]
[424261543,1780708243000,-989.87,0.00022466,2]
[424261542,1780708243000,-1355.7,0.00022466,2]
[424261546,1780708243000,-168.29,0.00022603,2]
[424261540,1780708243000,-284.98708574,0.00022407,2]
[424261547,1780708243000,-4854.23,0.00022643,2]
[424261548,1780708243000,-200.0,0.00022672,2]
[424261551,1780708243000,-791.0,0.00023,2]
[424261541,1780708243000,-284.98708573,0.00022407,2]
[424261544,1780708243000,-1000.0,0.0002259,2]
[424261550,1780708243000,-39468.26079027,0.0002281,2]
[424261539,1780708243000,-596.24169126,0.00022407,2]
[424261549,1780708243000,-1039.35,0.000227,7]
[424261619,1780708244000,-1039.35,0.000248,7]
[424261629,1780708244000,-150.0,0.00024891,2]
[424261625,1780708244000,-150.0,0.00024891,2]
[424261624,1780708244000,-150.0,0.00024891,2]
[424261616,1780708244000,-905.92,0.00024658,2]
[424261627,1780708244000,-150.0,0.00024891,2]
[424261636,1780708244000,-150.0,0.0002494,7]
[424261626,1780708244000,-150.0,0.00024891,2]
[424261628,1780708244000,-150.0,0.00024891,2]
[424261637,1780708244000,-161.10138328,0.0002494,7]
[424261630,1780708244000,-3553.0,0.00024891,2]
[424261618,1780708244000,-300.0,0.00024658,14]
[424261634,1780708244000,-1227.0,0.00024891,2]
[424261638,1780708244000,-151.0,0.00025,4]
[424261631,1780708244000,-1357.0,0.00024891,2]
[424261633,1780708244000,-1273.0,0.00024891,2]
[424261635,1780708244000,-1645.53400658,0.0002494,7]
[424261650,1780708244000,-816.0,0.00025,2]
[424261648,1780708244000,-707.10012467,0.00025,2]
[424261640,1780708244000,-1031.51531788,0.00025,2]
[424261646,1780708244000,-3815.10499114,0.00025,2]
[424261647,1780708244000,-656.0,0.00025,2]
[424261641,1780708244000,-585.97008557,0.00025,2]
[424261620,1780708244000,-2413.92,0.00024803,7]
[424261632,1780708244000,-382.0,0.00024891,2]
[424261622,1780708244000,-150.0,0.00024891,2]
[424261613,1780708244000,-288.01,0.00024658,2]
[424261621,1780708244000,-150.0,0.00024891,2]
[424261645,1780708244000,-590.90063998,0.00025,2]
[424261597,1780708244000,-215.77576141,0.00024,7]
[424261594,1780708244000,-3833.0,0.00024,2]
[424261593,1780708244000,-704.0,0.00024,2]
[424261596,1780708244000,-1691.0,0.00024,2]
[424261595,1780708244000,-800.0,0.00024,2]
[424261599,1780708244000,-4854.25,0.00024013,2]
[424261598,1780708244000,-408.0,0.00024,2]
[424261601,1780708244000,-347.9,0.00024174,2]
[424261600,1780708244000,-2941.6,0.00024174,2]
[424261611,1780708244000,-1124.0,0.00024591,2]
[424261617,1780708244000,-150.0,0.00024658,2]
[424261602,1780708244000,-547.94701835,0.00024203,2]
[424261604,1780708244000,-60016.73136667,0.00024246,2]
[424261610,1780708244000,-812.65013937,0.00024415,2]
[424261608,1780708244000,-6072.0,0.00024352,2]
[424261603,1780708244000,-200.0,0.00024225,2]
[424261605,1780708244000,-2000.0,0.00024282,7]
[424261606,1780708244000,-4071.0,0.00024324,2]
[424261607,1780708244000,-500.0,0.00024351,2]
[424261609,1780708244000,-933.0,0.00024352,2]
[424261614,1780708244000,-500.0,0.00024658,2]
[424261615,1780708244000,-1000.0,0.00024658,2]
[424261623,1780708244000,-150.0,0.00024891,2]
[424261612,1780708244000,-260.21299092,0.00024621,2]
[424261642,1780708244000,-2594.47074602,0.00025,2]
[424261649,1780708244000,-3837.35156959,0.00025,2]
[424261644,1780708244000,-1032.41011367,0.00025,2]
[424261680,1780708244000,-550.0,0.00026,2]
[424261676,1780708244000,-500.0,0.00025796,30]
[424261674,1780708244000,-500.0,0.00025796,30]
[424261681,1780708244000,-151.0,0.00026,4]
[424261678,1780708244000,-1124.0,0.00025821,2]
[424261679,1780708244000,-500.0,0.00025834,2]
[424261682,1780708244000,-500.0,0.00026,2]
[424261684,1780708244000,-366.42,0.00026027,7]
[424261683,1780708244000,-551.59,0.00026027,7]
[424261687,1780708244000,-300.0,0.00026028,14]
[424261688,1780708244000,-500.0,0.0002607,30]
[424261677,1780708244000,-674.0,0.00025796,30]
[424261690,1780708244000,-500.0,0.0002607,30]
[424261695,1780708244000,-350.0,0.00026482,2]
[424261693,1780708244000,-731.41099736,0.00026397,2]
[424261692,1780708244000,-500.0,0.00026344,30]
[424261696,1780708244000,-350.0,0.00026482,2]
[424261697,1780708244000,-350.0,0.00026482,2]
[424261694,1780708244000,-350.0,0.00026482,2]
[424261699,1780708244000,-350.0,0.00026482,2]
[424261700,1780708244000,-350.0,0.00026482,2]
[424261701,1780708244000,-350.0,0.00026482,2]
[424261702,1780708244000,-350.0,0.00026482,2]
[424261639,1780708244000,-799.08937479,0.00025,2]
[424261691,1780708244000,-4071.0,0.00026296,2]
[424261686,1780708244000,-191.02827794,0.00026028,2]
[424261689,1780708244000,-500.0,0.0002607,30]
[424261675,1780708244000,-500.0,0.00025796,30]
[424261685,1780708244000,-187.63,0.00026027,7]
[424261643,1780708244000,-3449.59511354,0.00025,2]
[424261656,1780708244000,-439.09,0.00025,2]
[424261655,1780708244000,-439.09,0.00025,2]
[424261657,1780708244000,-439.09,0.00025,2]
[424261698,1780708244000,-350.0,0.00026482,2]
[424261659,1780708244000,-439.09,0.00025,2]
[424261660,1780708244000,-439.09,0.00025,2]
[424261661,1780708244000,-439.09,0.00025,2]
[424261662,1780708244000,-424.0,0.00025,2]
[424261651,1780708244000,-1695.0,0.00025,2]
[424261653,1780708244000,-439.09,0.00025,2]
[424261654,1780708244000,-439.09,0.00025,2]
[424261658,1780708244000,-439.09,0.00025,2]
[424261652,1780708244000,-439.09,0.00025,2]
[424261671,1780708244000,-500.0,0.00025785,2]
[424261673,1780708244000,-347.9,0.00025786,2]
[424261672,1780708244000,-2941.6,0.00025786,2]
[424261669,1780708244000,-180.0,0.00025771,2]
[424261667,1780708244000,-39468.26079027,0.00025457,2]
[424261670,1780708244000,-200.0,0.00025777,2]
[424261665,1780708244000,-14165.05,0.00025132,7]
[424261666,1780708244000,-731.41099736,0.00025397,2]
[424261664,1780708244000,-500.0,0.00025081,2]
[424261663,1780708244000,-200.0,0.00025001,2]
[424261668,1780708244000,-478.92,0.00025644,2]
[424261740,1780708245000,-1300.36,0.00027397,2]
[424261742,1780708245000,-151.0,0.00027397,15]
[424261745,1780708245000,-151.0,0.00027397,15]
[424261744,1780708245000,-151.0,0.00027397,15]
[424261739,1780708245000,-933.0,0.00027352,2]
[424261735,1780708245000,-632.28251305,0.0002723,2]
[424261737,1780708245000,-185.0,0.000273,30]
[424261736,1780708245000,-160.13227985,0.000273,30]
[424261734,1780708245000,-641.0,0.00027137,2]
[424261729,1780708245000,-250.0,0.00027,7]
[424261738,1780708245000,-6072.0,0.00027352,2]
[424261741,1780708245000,-487.60733157,0.00027397,7]
[424261743,1780708245000,-151.0,0.00027397,15]
[424261758,1780708245000,-273.641047,0.00027397,15]
[424261750,1780708245000,-151.0,0.00027397,15]
[424261746,1780708245000,-151.0,0.00027397,15]
[424261757,1780708245000,-151.0,0.00027397,15]
[424261749,1780708245000,-151.0,0.00027397,15]
[424261751,1780708245000,-151.0,0.00027397,15]
[424261752,1780708245000,-151.0,0.00027397,15]
[424261748,1780708245000,-151.0,0.00027397,15]
[424261753,1780708245000,-151.0,0.00027397,15]
[424261755,1780708245000,-151.0,0.00027397,15]
[424261756,1780708245000,-151.0,0.00027397,15]
[424261754,1780708245000,-151.0,0.00027397,15]
[424261730,1780708245000,-295.0,0.00027,7]
[424261747,1780708245000,-151.0,0.00027397,15]
[424261726,1780708245000,-250.0,0.00027,7]
[424261704,1780708245000,-500.0,0.00026609,2]
[424261725,1780708245000,-250.0,0.00027,7]
[424261709,1780708245000,-1039.35,0.000268,7]
[424261761,1780708245000,-342.280518,0.00027397,2]
[424261707,1780708245000,-500.0,0.00026618,30]
[424261708,1780708245000,-60016.73136667,0.00026691,2]
[424261703,1780708245000,-178.0,0.00026482,2]
[424261706,1780708245000,-500.0,0.00026618,30]
[424261705,1780708245000,-500.0,0.00026618,30]
[424261713,1780708245000,-400.0,0.000268,7]
[424261710,1780708245000,-400.0,0.000268,7]
[424261712,1780708245000,-400.0,0.000268,7]
[424261715,1780708245000,-400.0,0.000268,7]
[424261716,1780708245000,-400.0,0.000268,7]
[424261728,1780708245000,-250.0,0.00027,7]
[424261714,1780708245000,-400.0,0.000268,7]
[424261719,1780708245000,-14165.05,0.00026843,7]
[424261711,1780708245000,-400.0,0.000268,7]
[424261720,1780708245000,-749.652936,0.00027,2]
[424261717,1780708245000,-400.0,0.000268,7]
[424261732,1780708245000,-215.77576141,0.00027,7]
[424261722,1780708245000,-365.0,0.00027,7]
[424261733,1780708245000,-1124.0,0.00027112,2]
[424261721,1780708245000,-151.0,0.00027,4]
[424261724,1780708245000,-250.0,0.00027,7]
[424261723,1780708245000,-250.0,0.00027,7]
[424261731,1780708245000,-215.77576141,0.00027,3]
[424261727,1780708245000,-250.0,0.00027,7]
[424261718,1780708245000,-508.0,0.000268,7]
[424261762,1780708245000,-342.280518,0.00027397,2]
[424261760,1780708245000,-342.280518,0.00027397,2]
[424261769,1780708245000,-500.0,0.00027397,2]
[424261794,1780708245000,-1863.0,0.00027397,2]
[424261795,1780708245000,-500.0,0.00027397,2]
[424261796,1780708245000,-500.0,0.00027397,2]
[424261799,1780708245000,-1863.0,0.00027397,2]
[424261801,1780708245000,-1863.0,0.00027397,2]
[424261797,1780708245000,-1863.0,0.00027397,2]
[424261798,1780708245000,-500.0,0.00027397,2]
[424261800,1780708245000,-638.68527057,0.00027397,2]
[424261803,1780708245000,-474.00799379,0.00027397,2]
[424261804,1780708245000,-1863.0,0.00027397,2]
[424261802,1780708245000,-150.0,0.00027397,2]
[424261805,1780708245000,-1863.0,0.00027397,2]
[424261806,1780708245000,-1863.0,0.00027397,2]
[424261807,1780708245000,-1865.17433501,0.00027397,2]
[424261811,1780708245000,-1000.0,0.00027397,20]
[424261809,1780708245000,-288.01,0.00027397,8]
[424261808,1780708245000,-1500.0,0.00027397,2]
[424261814,1780708245000,-905.92,0.00027397,2]
[424261812,1780708245000,-300.0,0.00027397,2]
[424261817,1780708245000,-2126.765351,0.00027397,2]
[424261813,1780708245000,-1022.33,0.00027397,2]
[424261810,1780708245000,-528.75,0.00027397,2]
[424261816,1780708245000,-2126.765351,0.00027397,2]
[424261815,1780708245000,-2126.765351,0.00027397,2]
[424261819,1780708245000,-57302.32,0.00027397,10]
[424261818,1780708245000,-2126.765351,0.00027397,2]
[424261763,1780708245000,-1863.0,0.00027397,2]
[424261793,1780708245000,-500.0,0.00027397,2]
[424261792,1780708245000,-500.0,0.00027397,2]
[424261820,1780708245000,-47751.94,0.00027397,10]
[424261790,1780708245000,-1863.0,0.00027397,2]
[424261789,1780708245000,-500.0,0.00027397,2]
[424261765,1780708245000,-1863.0,0.00027397,2]
[424261766,1780708245000,-1863.0,0.00027397,2]
[424261767,1780708245000,-1863.0,0.00027397,2]
[424261768,1780708245000,-1863.0,0.00027397,2]
[424261759,1780708245000,-342.280518,0.00027397,2]
[424261764,1780708245000,-1863.0,0.00027397,2]
[424261771,1780708245000,-500.0,0.00027397,2]
[424261770,1780708245000,-1863.0,0.00027397,2]
[424261777,1780708245000,-1863.0,0.00027397,2]
[424261775,1780708245000,-500.0,0.00027397,2]
[424261776,1780708245000,-500.0,0.00027397,2]
[424261773,1780708245000,-500.0,0.00027397,2]
[424261781,1780708245000,-1863.0,0.00027397,2]
[424261774,1780708245000,-1863.0,0.00027397,2]
[424261772,1780708245000,-1863.0,0.00027397,2]
[424261791,1780708245000,-500.0,0.00027397,2]
[424261787,1780708245000,-500.0,0.00027397,2]
[424261785,1780708245000,-500.0,0.00027397,2]
[424261784,1780708245000,-1863.0,0.00027397,2]
[424261782,1780708245000,-500.0,0.00027397,2]
[424261783,1780708245000,-500.0,0.00027397,2]
[424261788,1780708245000,-1863.0,0.00027397,2]
[424261779,1780708245000,-1863.0,0.00027397,2]
[424261780,1780708245000,-500.0,0.00027397,2]
[424261778,1780708245000,-500.0,0.00027397,2]
[424261786,1780708245000,-1863.0,0.00027397,2]
[424261859,1780708246000,-163.84428411,0.00027814,2]
[424261862,1780708246000,-157.42168976,0.00027814,2]
[424261864,1780708246000,-203.52025861,0.00027829,2]
[424261854,1780708246000,-153.83765891,0.00027814,2]
[424261853,1780708246000,-187.96820158,0.00027814,2]
[424261858,1780708246000,-155.51270695,0.00027814,2]
[424261856,1780708246000,-158.26305273,0.00027814,2]
[424261857,1780708246000,-183.15132992,0.00027814,2]
[424261855,1780708246000,-194.17406957,0.00027814,2]
[424261863,1780708246000,-157.10630746,0.00027829,2]
[424261860,1780708246000,-172.49164317,0.00027814,2]
[424261861,1780708246000,-163.28549753,0.00027814,2]
[424261877,1780708246000,-199.46330095,0.00027851,2]
[424261865,1780708246000,-155.53660592,0.00027829,2]
[424261867,1780708246000,-176.19285123,0.00027829,2]
[424261868,1780708246000,-170.53233533,0.00027829,2]
[424261869,1780708246000,-172.58860952,0.00027829,2]
[424261874,1780708246000,-174.83060267,0.00027851,2]
[424261873,1780708246000,-173.69396365,0.00027851,2]
[424261872,1780708246000,-164.16576837,0.00027851,2]
[424261870,1780708246000,-200.78248665,0.00027833,2]
[424261871,1780708246000,-176.62192905,0.00027851,2]
[424261878,1780708246000,-179.37045591,0.00027851,2]
[424261875,1780708246000,-175.86512251,0.00027851,2]
[424261886,1780708246000,-323.208621,0.00027891,7]
[424261851,1780708246000,-167.53313161,0.00027814,2]
[424261866,1780708246000,-168.46431894,0.00027829,2]
[424261850,1780708246000,-166.30880162,0.00027814,2]
[424261841,1780708246000,-151.0,0.00027791,7]
[424261845,1780708246000,-198.51320239,0.00027814,2]
[424261876,1780708246000,-161.60710871,0.00027851,2]
[424261829,1780708246000,-2085.19,0.000274,7]
[424261823,1780708246000,-33161.07,0.00027397,10]
[424261821,1780708246000,-39793.28,0.00027397,10]
[424261822,1780708246000,-3084.57,0.00027397,2]
[424261824,1780708246000,-487.60733157,0.00027397,7]
[424261825,1780708246000,-300.0,0.00027398,14]
[424261826,1780708246000,-1182.91,0.000274,14]
[424261828,1780708246000,-1614.13,0.000274,7]
[424261830,1780708246000,-500.0,0.00027407,14]
[424261832,1780708246000,-500.0,0.000275,7]
[424261836,1780708246000,-641.0,0.00027671,2]
[424261831,1780708246000,-2000.0,0.00027426,7]
[424261834,1780708246000,-1000.00000099,0.00027525,2]
[424261833,1780708246000,-1000.0,0.00027525,2]
[424261837,1780708246000,-432.548374,0.00027791,7]
[424261838,1780708246000,-432.548374,0.00027791,7]
[424261835,1780708246000,-2413.92,0.00027606,7]
[424261839,1780708246000,-432.548374,0.00027791,7]
[424261840,1780708246000,-432.548374,0.00027791,7]
[424261843,1780708246000,-156.04137757,0.00027814,2]
[424261844,1780708246000,-215.39283764,0.00027814,2]
[424261849,1780708246000,-363.40415515,0.00027814,2]
[424261846,1780708246000,-383.26351064,0.00027814,2]
[424261847,1780708246000,-418.43148532,0.00027814,2]
[424261852,1780708246000,-180.01253117,0.00027814,2]
[424261848,1780708246000,-169.09417811,0.00027814,2]
[424261842,1780708246000,-176.04990657,0.00027814,2]
[424261879,1780708246000,-313.08105724,0.00027851,2]
[424261935,1780708246000,-2937.12,0.0002863,30]
[424261881,1780708246000,-500.0,0.0002789,7]
[424261916,1780708246000,-1039.35,0.000284,7]
[424261913,1780708246000,-500.0,0.00028229,16]
[424261924,1780708246000,-151.0,0.00028544,7]
[424261917,1780708246000,-1124.0,0.00028467,5]
[424261918,1780708246000,-168.29,0.00028493,2]
[424261920,1780708246000,-151.0,0.00028544,7]
[424261923,1780708246000,-194.091505,0.00028544,7]
[424261915,1780708246000,-3208.64,0.000283,30]
[424261925,1780708246000,-194.091505,0.00028544,7]
[424261922,1780708246000,-151.0,0.00028544,7]
[424261926,1780708246000,-194.091505,0.00028544,7]
[424261919,1780708246000,-151.0,0.00028544,7]
[424261914,1780708246000,-4071.0,0.00028267,2]
[424261928,1780708246000,-2085.19,0.000286,7]
[424261929,1780708246000,-692.62,0.0002861,7]
[424261938,1780708246000,-3000.54,0.0002863,30]
[424261930,1780708246000,-1134.12,0.0002861,7]
[424261932,1780708246000,-672.5,0.0002863,2]
[424261933,1780708246000,-1779.92,0.0002863,30]
[424261934,1780708246000,-3013.23,0.0002863,30]
[424261931,1780708246000,-2977.37,0.0002863,30]
[424261936,1780708246000,-671.15,0.0002863,2]
[424261937,1780708246000,-1743.73,0.0002863,30]
[424261939,1780708246000,-672.5,0.00028661,7]
[424261880,1780708246000,-203.17618467,0.00027851,2]
[424261940,1780708246000,-671.15,0.00028661,7]
[424261927,1780708246000,-14165.05,0.00028554,7]
[424261909,1780708246000,-215.77576141,0.00028,10]
[424261921,1780708246000,-194.091505,0.00028544,7]
[424261908,1780708246000,-265.51807353,0.00028,4]
[424261883,1780708246000,-500.0,0.0002789,7]